Cogmind - Beta 12 @@@ ROGUE MODE // 2023.04.06 @ 22:10:49 Player: kasaphescent Result: Destroyed by D-53 Grenadier with Mini Grenade Launcher Performance ------------- Evolutions (0) 0 Regions Visited (2) 400 Robots Destroyed (15) 75 Value Destroyed (502) 502 Prototype IDs (1) 20 Alien Tech Used (0) 0 Bonus (0) 0 TOTAL SCORE: 997 Bonus ------- None Cogmind --------- Core Integrity 0/250 Matter 228/300 Energy 84/100 System Corruption 0% Temperature Cool (0) Movement Treading (240) Ox1 Location -10/Mines Parts ------- > --- POWER (1) -------- (None) > --- PROPULSION (2) --- Light Treads Light Treads > --- UTILITY (2) ------ Improved Heat Sink High-capacity Storage Unit > --- WEAPON (2) ------- (None) > --- INVENTORY (20) --- Heavy Ion Engine Heavy Ion Engine Aluminum Leg Aluminum Leg Aluminum Leg Aluminum Leg High-capacity Matter Pod (0) Grenade Launcher Peak State ------------ > --- POWER ------------ Heavy Ion Engine > --- PROPULSION ------- Light Treads Compact Wheel > --- UTILITY ---------- Improved Heat Sink High-capacity Storage Unit > --- WEAPON ----------- Assault Rifle Grenade Launcher > --- INVENTORY -------- Heavy Ion Engine Heavy Ion Engine Light Treads Light Treads Aluminum Leg Aluminum Leg Aluminum Leg Aluminum Leg High-capacity Matter Pod [Rating: 12] Favorites ----------- Power Heavy Ion Engine Engine Heavy Ion Engine Propulsion Compact Wheel Treads Light Treads Leg Aluminum Leg Wheel Compact Wheel Utility High-capacity Storage Unit Device Terrain Scanner Storage High-capacity Storage Unit Weapon Assault Rifle Ballistic Gun Assault Rifle Launcher Grenade Launcher Build | -11 -10 -10 ------- Run | Jun Mat Min Slots Evolved . | . . . Power . | . . . Propulsion . | . . . Utility . | . . . Weapon . | . . . Parts Attached 22 | 6 13 3 Power 4 | 1 3 . Engine 4 | 1 3 . Core . | . . . Reactor . | . . . Propulsion 10 | 2 6 2 Treads 3 | . 1 2 Leg 4 | 2 2 . Wheel 3 | . 3 . Hover . | . . . Flight . | . . . Utility 4 | 1 3 . Device 2 | . 2 . Storage 2 | 1 1 . Processor . | . . . Hackware . | . . . Protection . | . . . Artifact . | . . . Weapon 4 | 2 1 1 Energy Gun . | . . . Energy Cannon . | . . . Ballistic Gun 3 | 2 1 . Ballistic Cannon . | . . . Launcher 1 | . . 1 Special Weapon . | . . . Impact Weapon . | . . . Slashing Weapon . | . . . Piercing Weapon . | . . . Special Melee Weapon . | . . . Unidentified Prototypes 1 | . 1 . Parts Lost 7 | . 3 4 Power 1 | . . 1 Propulsion 3 | . 1 2 Utility . | . . . Weapon 3 | . 2 1 Highest Loss Streak 4 | . 3 4 To Critical Strikes . | . . . Average Slot Usage (%) 92 | . 93 85 Engine 14 | . 14 14 Treads 9 | . 9 14 Leg 7 | . 7 . Wheel 11 | . 10 14 Device 9 | . 9 14 Storage 14 | . 14 14 Ballistic Gun 25 | . 26 12 Naked Turns . | . . . Heaviest Build 52 | 13 52 51 Greatest Support 40 | 20 32 40 Greatest Overweight (x) 4 | 4 3 3 Average Overweight (x) 1 | . 1 2 Largest Inventory Capacity 20 | 8 20 20 Average Capacity 16 | 7 16 20 Most Carried 13 | 6 13 10 Average Carried 9 | 3 10 9 Final Capacity 20 | 8 20 20 Final Carried 10 | 6 10 8 Class Distribution -------------------- 100% | Mutant Dominant Class ---------------- Mutant | -10/Materials Mutant | -10/Mines Resources | -11 -10 -10 ----------- Run | Jun Mat Min Matter Collected 691 | 260 416 15 Remotely . | . . . Salvage Created 650 | . 603 47 Parts 29 | . 26 3 Haulers Intercepted 1 | . 1 . Recyclers Shooed 1 | . 1 . Parts Field Recycled . | . . . Retrieved Matter . | . . . Parts Self-Destructed . | . . . Prevented . | . . . Kills | -11 -10 -10 ------- Run | Jun Mat Min Combat Hostiles Destroyed 13 | . 11 2 Guns 11 | . 11 . AOE 2 | . . 2 Classes Destroyed 3 | . 3 . Hauler 1 | . 1 . Recycler 1 | . 1 . Grunt 13 | . 11 2 Best Kill Streak 4 | . 4 2 Combat Bots Only 4 | . 4 2 Max Kills in Single Turn 1 | . 1 1 Gunslinging . | . . . Exploded 1 | . . 1 Melee . | . . . Uniques/NPCs Destroyed . | . . . Combat | -11 -10 -10 -------- Run | Jun Mat Min Damage Taken 1088 | . 716 372 Core 259 | . 114 145 Absorbed by Shields . | . . . Core Remaining (%) 100 | 100 . . Volleys Fired 91 | . 81 10 Largest 2 | . 2 1 Hottest 40 | . 40 30 Shots Fired 167 | . 157 10 Gun 164 | . 157 7 Cannon . | . . . Launcher 3 | . . 3 Special . | . . . Kinetic 164 | . 157 7 Thermal . | . . . Explosive 3 | . . 3 Electromagnetic . | . . . Robot Hit Streak 16 | . 12 16 Robot Miss Streak 5 | . 5 . Penetration Max . | . . . Secondary Targets . | . . . Shots Hit Robots 118 | . 109 9 Core Hits 34 | . 28 6 Critical Kills . | . . . Critical Parts Destroyed . | . . . Critical Strikes . | . . . Melee Attacks . | . . . Impact . | . . . Slashing . | . . . Piercing . | . . . Sneak Attacks . | . . . Combat Hostiles . | . . . Follow-up Attacks . | . . . Damage Inflicted 1450 | . 1168 282 Guns 1258 | . 1168 90 Cannons . | . . . Explosions 192 | . . 192 Melee . | . . . Ramming . | . . . Kinetic 1258 | . 1168 90 Thermal . | . . . Explosive 192 | . . 192 Electromagnetic . | . . . Impact . | . . . Slashing . | . . . Piercing . | . . . Highest Corruption . | . . . Average Corruption . | . . . Corruption Purged . | . . . Corruption Blocked . | . . . Overload Shots . | . . . Overflow Damage . | . . . Projectiles . | . . . Explosions . | . . . Melee . | . . . Knockbacks . | . . . Impact . | . . . Kinetic . | . . . Secondary . | . . . Self-Inflicted Damage . | . . . Shots . | . . . Rammed . | . . . Targets Rammed . | . . . Kicked . | . . . Crushed . | . . . Highest Temperature 22 | . 22 . Average Temperature 5 | . 5 . Received Heat Transfer 462 | . 399 63 Siege Activations . | . . . Robots Corrupted . | . . . Combat Hostiles . | . . . Parts Fried . | . . . Impact Corruptions . | . . . Robots Melted . | . . . Combat Hostiles . | . . . Parts Melted . | . . . Heat Transferred . | . . . Parts Sabotaged . | . . . Parts Stolen . | . . . Parts Stripped . | . . . Power Chain Reactions . | . . . Missiles Intercepted . | . . . Alert | -11 -10 -10 ------- Run | Jun Mat Min Peak Influence 252 | . 252 130 Initial 56 | . . 56 Average 127 | . 139 122 Maximum Alert Level 1 | . 1 . Low Security (%) 75 | 100 70 100 Level 1 24 | . 29 . Level 2 . | . . . Level 3 . | . . . Level 4 . | . . . Level 5 . | . . . High Security . | . . . Max Security . | . . . Squads Dispatched 2 | . 2 . Investigation . | . . . Extermination . | . . . Reinforcement 2 | . 2 . Assault . | . . . Garrison . | . . . Intercept . | . . . Searches Triggered . | . . . Construction Impeded . | . . . Haulers Reinforced . | . . . Active Scanning Responses . | . . . Cargo Convoy Interrupts . | . . . Stealth | -11 -10 -10 --------- Run | Jun Mat Min Distress Signals 2 | . 2 . Communications Jammed . | . . . Distress Signals . | . . . Times Spotted 26 | . 21 5 Peak Tracking Total 4 | . 4 2 Tactical Retreats 1 | . 1 . Traps | -11 -10 -10 ------- Run | Jun Mat Min Traps Triggered . | . . . Indirectly . | . . . Trap Hack Attempts . | . . . Triggered . | . . . Disarmed . | . . . Reprogrammed . | . . . Reused . | . . . Traps Extracted . | . . . Installed . | . . . Triggered . | . . . Machines | -11 -10 -10 ---------- Run | Jun Mat Min Machines Disabled . | . . . Max in Single Turn . | . . . Machines Repaired . | . . . Machines Sabotaged . | . . . Overloaded Fab Kills . | . . . Hacking | -11 -10 -10 --------- Run | Jun Mat Min Machines Accessed 2 | . 2 . Terminals 2 | . 2 . Fabricators . | . . . Repair Stations . | . . . Recycling Units . | . . . Scanalyzers . | . . . Garrison Access . | . . . Total Hacks 4 | . 4 . Successful 1 | . 1 . Failed 3 | . 3 . Catastrophic 1 | . 1 . Database Lockouts . | . . . Manual . | . . . Terminals 4 | . 4 . Fabricators . | . . . Repair Stations . | . . . Recycling Units . | . . . Scanalyzers . | . . . Garrison Access . | . . . Terminal Hacks 1 | . 1 . Locate Traps 1 | . 1 . Fabricator Hacks . | . . . Repair Station Hacks . | . . . Recycling Unit Hacks . | . . . Scanalyzer . | . . . Garrison Access Hacks . | . . . Unauthorized Hacks . | . . . Terminals . | . . . Fabricators . | . . . Repair Stations . | . . . Recycling Units . | . . . Scanalyzers . | . . . Garrison Access . | . . . Data Cores Recovered . | . . . Used . | . . . Hacking Detections 1 | . 1 . Full Trace Events . | . . . Feedback Events . | . . . Feedback Blocked . | . . . Robot Schematics Acquired . | . . . Robots Built . | . . . Authchips . | . . . Time . | . . . Total Robot Build Rating . | . . . Part Schematics Acquired . | . . . Parts Built . | . . . Authchips . | . . . Time . | . . . Total Part Build Rating . | . . . Parts Repaired . | . . . Time . | . . . Parts Recycled . | . . . Recycled Matter . | . . . Retrieved Matter . | . . . Retrieved Components . | . . . Parts Scanalyzed . | . . . Part Schematics Acquired . | . . . Parts Damaged . | . . . Bothacking | -11 -10 -10 ------------ Run | Jun Mat Min Used RIF Installer . | . . . Robots Hacked . | . . . Non-combat . | . . . Combat . | . . . Robot Hacks Applied . | . . . Relay Couplers Released . | . . . Fabnet Peak Effective % . | . . . Robots Rewired . | . . . Allies Hacked . | . . . Hacks Repelled . | . . . Allies | -11 -10 -10 -------- Run | Jun Mat Min Total Allies . | . . . Largest Group . | . . . Highest-Rated Group . | . . . Highest-Rated Ally . | . . . Total Orders . | . . . Ally Attacks . | . . . Total Damage . | . . . Kills . | . . . Allies Corrupted . | . . . Allies Melted . | . . . Intel | -11 -10 -10 ------- Run | Jun Mat Min Robot Analysis Total . | . . . Derelict Logs Recovered . | . . . Drone Launches . | . . . Drone Recoveries . | . . . Exploration | -11 -10 -10 ------------- Run | Jun Mat Min Turns Passed 922 | 67 766 89 Spaces Moved 411 | 43 324 44 Core 20 | 20 . . Treads 1 | . . 1 Legs 108 | 23 85 . Wheels 282 | . 239 43 Hover . | . . . Flight . | . . . Fastest Speed 50 | 50 115 145 Average Speed 134 | 121 134 147 Slowest Speed 250 | 250 145 240 Overloaded Moves . | . . . Propulsion Burnouts . | . . . Robots Hopped . | . . . Cave-ins Triggered . | . . . Exploration Rate (%) 23 | 4 55 10 Regions Visited 2 Branch Regions 1 Pre-discovered Areas . | . . . Known Exits Taken . | . . . Unknown Exits Taken 2 | 1 1 . Scrap Searched . | . . . Spaces Dug 6 | . . 6 Terrain Destroyed 20 | . . 20 Melee . | . . . Projectile . | . . . AOE 20 | . . 20 Terrain Rammed . | . . . Walls Destroyed . | . . . Machines Disabled . | . . . Actions | -11 -10 -10 --------- Run | Jun Mat Min Total 629 | 54 515 60 Wait 77 | . 75 2 Move 409 | 42 323 44 Hop . | . . . Pick Up 15 | 6 9 . Fast Attach 11 | 6 5 . Attach 6 | . 3 3 Detach 6 | . 5 1 Swap 5 | . 5 . Drop 9 | . 9 . Fire 91 | . 81 10 Melee . | . . . Ram . | . . . Kick . | . . . Crush . | . . . Escape Stasis . | . . . Rewire . | . . . Trap . | . . . Miscellaneous . | . . . Route ------- -11/Junkyard -10/Materials (discovered 3 exits: [*Mat x2] / [*Min]) -10/Mines (discovered 1 exit: [*Mat]) History --------- Turn | Location | Event 12 | -11/Junkyard | Discovered new exit (range 15) 68 | -11/Junkyard | Entered Materials 311 | -10/Materials | Build established: Mutant 481 | -10/Materials | Discovered new exit (range 3) 680 | -10/Materials | Discovered new exit (range 10) 808 | -10/Materials | Lost 3 parts (1n2w) 827 | -10/Materials | Discovered new exit (range 6) 834 | -10/Materials | Entered Mines 839 | -10/Mines | Core integrity fell below 50% 879 | -10/Mines | Discovered new exit (range 5) 904 | -10/Mines | Assembled infested the area 923 | -10/Mines | Core integrity fell below 20% 923 | -10/Mines | Destroyed by D-53 Grenadier with Mini Grenade Launcher Last Messages --------------- 00858_ U-05 Engineer builds a Wall. 00858_ R-06 Scavenger collects Lgt. Nuclear Core. 00862_ U-05 Engineer builds a Wall. 00864_ U-05 Engineer forms the Earth. 00866_ U-05 Engineer builds a Wall. 00866_ U-05 Engineer forms the Earth. 00871_ U-05 Engineer lays Concrete. 00871_ U-05 Engineer builds a Wall. 00872_ U-05 Engineer lays Concrete. 00879_ EXIT=FOUND 00904_ ALERT: Infestation in the mines, dispatching Demolisher response squad. 00915_ C-30 ARC bursts open, deploying its payload. 00915_ D-53 Grenadier unfolds itself. 00916_ Assault Rifle destroyed. 00920_ The unstable cave ceiling collapses. 00920_ Com. Wheel destroyed. 00920_ Lgt. Treads destroyed. 00921_ The unstable cave ceiling collapses. 00921_ Hvy. Ion Engine destroyed. Map ----- +----------------------------------------------------+ | ???????????????????????????????????????????? | | ???????????????????????????????????????????? | | ???????????????????????????????????????????? | | ???????????????????????????????????????????? | | ???????????????????????????????????????????? | | ???????????????????????????????????????????? | | ???????????????????????????????????????????? | | ???????????????????????????????????????????? | | ???????????????????????????????????????????? | | ???????????????????????????????????????????? | | ???????????????????????????????????????????? | | ???????????????????????????????????????????? | | ???????????????????????????????????????????? | | ???????????????????????????????????????????? | | ???????????????????????????????????????????? | | ???????????????????????????????????????????? | | ???????????????????????????????????????????? | | ???????????????????????????????????????????? | | ???????????????????????????????????????????? | | ???????????????????????????????????????????? | | ???????????????????????????????????????????? | | ?????????????????????#######???????????????? | | ????????????????????## # # ##?????? ###???? | | ????????????????????# ####*| ??? | | ???????????????????## ??????? | | ???????????????????# @ #?????????????? | | ???????????????????# ##?????????????? | | ???????????????????# #??????????????? | | ??????????????????## #?????????????? | | ??????????????????#d%d ##?????????????? | | ??????????????????# # ##??????????????? | | ??????????????????# ## #???????????????? | | ????????#####?????# ########???????????????? | | ???????## ###???# #??????????????????????? | | ???????# ##### #??????????????????????? | | ???????# #??????????????????????? | | ???????## ######??????????????????????? | | ????????## ##??????????????????????????? | | ?????????## #??????????????????????????? | | ??????????# < #??????????????????????????? | | ?########### #??????????????????????????? | | ?# ### ##??????????????????????????? | | ?# #?## #???????????????????????????? | | ?# #### #???????????????????????????? | | ?# #???????????????????????????? | | ?# ######???????????????????????????? | | ?# ! ##???????????????????????????????? | | ?##### #### #??????????????????????????????? | | ???# ## ###??????????????????????????????? | | ???##### #???????????????????????????????? | +----------------------------------------------------+ Best States ------------- Heat Dissipation 39 Energy Generation 14 Energy Capacity 280 Matter Stores 300 Matter Capacity 300 Sight Range 16 Terrain Scan Range 14 Terrain Scan Density 10 Evasion (%) 55 Recoil Reduction 1 Item Schematics ----------------- None Robot Schematics ------------------ None Fabricated ------------ Nothing Alien Tech Used ----------------- None Achievements -------------- None Challenges ------------ None Game ------ Seed WeightThermalShield Manual? 0 Play Time 00:07:06 Cumulative 331.1 hours Start 2023.04.06 @ 22:03:55 End 2023.04.06 @ 22:10:49 Sessions 1 Manual Loads 0 Difficulty Rogue Special Mode None Game No. 228 Rogue 228 Adventurer 0 Explorer 0 Win Type - Total 22 Types 19/0/2/1/0/0/0/0/0 Lore% 70 Gallery% 84 Achievement% 67 Wizard Run 0 Options --------- ASCII 0 Keyboard 1 Movement Numpad Keybinds 0 Fullscreen 2 Font 18/SmallcapsGlow Map View 76x50 Tactical HUD 1 Map Filters NONE Filters NONE Steam 1 RUN: d1b3b3a7-395d-4b87-9f0d-94bbf18510b1